fUSD/lending_fUSD_20240213
["ID","MTS","AMOUNT","RATE_DAILY","PERIOD"]
[313945795,1707844312887,-267.03455975,0.00037751,60]
[313945796,1707844312898,-300.0,0.00037751,26]
[313945797,1707844312908,-300.0,0.00037751,37]
[313945798,1707844312919,-12544.77160612,0.00037751,14]
[313945799,1707844312930,-375.42,0.00037751,120]
[313945800,1707844312940,-8631.0,0.00037751,7]
[313945801,1707844312955,-2051.08984436,0.00037751,90]
[313945802,1707844312966,-639.48884744,0.00037751,120]
[313945803,1707844312976,-381.30401888,0.00037751,2]
[313945804,1707844312985,-906.72028774,0.00037751,120]
[313945805,1707844312996,-431.83971089,0.00037751,2]
[313945806,1707844313006,-2992.4509629,0.00037751,120]
[313945807,1707844313017,-35000.0,0.00037751,30]
[313945808,1707844313028,-2725.7970894,0.00037751,14]
[313945809,1707844313038,-121367.8707,0.00037751,7]
[313945810,1707844313049,-5000.0,0.00037751,120]
[313945811,1707844313064,-5000.0,0.00037751,120]
[313945812,1707844313075,-5000.0,0.00037751,120]
[313945813,1707844313084,-5000.0,0.00037751,120]
[313945814,1707844313094,-5000.0,0.00037751,120]
[313945815,1707844313103,-5000.0,0.00037751,120]
[313945816,1707844313113,-5000.0,0.00037751,120]
[313945817,1707844313122,-5000.0,0.00037751,120]
[313945818,1707844313131,-5000.0,0.00037751,120]
[313945819,1707844313141,-5000.0,0.00037751,120]
[313945820,1707844313152,-5000.0,0.00037751,120]
[313945821,1707844313161,-10000.0,0.00037751,120]
[313945822,1707844313171,-500.0,0.00037751,10]
[313945823,1707844313181,-2806.60074457,0.00037751,120]
[313945824,1707844313191,-5974.0,0.00037751,120]
[313945825,1707844313204,-6423.76829121,0.00037751,30]
[313945826,1707844313214,-5000.0,0.00037751,120]
[313945827,1707844313224,-36367.13442061,0.00037751,120]
[313945828,1707844313234,-587.75678279,0.00037751,30]
[313945829,1707844313244,-75000.0,0.00037751,60]
[313945830,1707844313254,-157.0,0.00037751,120]
[313945831,1707844313264,-730.0,0.00037751,120]
[313945832,1707844313274,-1008.0,0.00037751,120]
[313945833,1707844313284,-554.9384799,0.00037751,7]
[313945834,1707844313294,-151.70982545,0.00037751,120]
[313945835,1707844313303,-14884.99891691,0.00037751,60]
[313945836,1707844313313,-500.0,0.00037751,120]
[313945837,1707844313322,-3916.08862055,0.00037751,120]
[313945838,1707844313331,-1909.14553395,0.00037751,2]
[313945839,1707844313340,-21934.99341406,0.00037751,2]
[313945840,1707844313349,-1512.05507412,0.00037751,10]
[313945841,1707844313358,-19999.999999,0.00037751,2]
[313945842,1707844313367,-664.0,0.00037751,120]
[313945843,1707844313376,-1000.0,0.00037751,60]
[313945844,1707844313387,-1000.0,0.00037751,30]
[313945845,1707844313397,-5699.0,0.00037751,120]
[313945846,1707844313406,-1000.0,0.00037751,30]
[313945847,1707844313415,-1000.0,0.00037751,30]
[313945848,1707844313424,-1000.0,0.00037751,30]
[313945849,1707844313433,-352.36688771,0.00037751,30]
[313945850,1707844313442,-210.43790361,0.00037751,120]
[313945851,1707844313456,-241.38585408,0.00037751,30]
[313945852,1707844313465,-342.43808674,0.00037751,30]
[313945853,1707844313475,-269.84730766,0.00037751,30]
[313945854,1707844313484,-1843.1406594,0.00037751,7]
[313945855,1707844313493,-901.0,0.00037751,120]
[313945856,1707844313502,-200.42169219,0.00037751,30]
[313945857,1707844313510,-350.37327692,0.00037751,30]
[313945858,1707844313519,-184.1403659,0.00037751,30]
[313945859,1707844313528,-649.98609546,0.00037751,7]
[313945860,1707844313538,-205.16230815,0.00037751,7]
[313945861,1707844313547,-378.70892141,0.00037751,2]
[313945862,1707844313556,-2001.09900009,0.00037751,30]
[313945863,1707844313565,-1143573.2475,0.00037751,7]
[313945864,1707844313574,-550.77,0.00037751,35]
[313945865,1707844313584,-565.78553445,0.00037751,30]
[313945866,1707844313594,-438.0,0.00037751,120]
[313945867,1707844313603,-3000.0,0.00037751,4]
[313945868,1707844313613,-1000.0,0.00037751,30]
[313945869,1707844313622,-500.0,0.00037751,15]
[313945870,1707844313631,-1252.72589403,0.00037751,60]
[313945871,1707844313640,-280.06186015,0.00037751,120]
[313945872,1707844313649,-1000.0,0.00037751,30]
[313945873,1707844313659,-1193.00133831,0.00037751,30]
[313945874,1707844313669,-12876.36923457,0.00037751,7]
[313945875,1707844313678,-177.59338596,0.00037751,30]
[313945876,1707844313689,-3125.0,0.00037751,120]
[313945877,1707844313703,-2226.30594936,0.00037751,4]
[313945878,1707844313712,-50478.70218133,0.00037751,13]
[313945879,1707844313721,-7513.1814189,0.00037751,120]
[313945880,1707844313730,-100000.0,0.00037751,7]
[313945881,1707844313740,-100000.0,0.00037751,21]
[313945882,1707844313749,-7318.253091,0.00037751,2]
[313945883,1707844313758,-1774.545963,0.00037751,30]
[313945884,1707844313767,-238.079729,0.00037751,30]
[313945885,1707844313776,-1000.0,0.00037751,2]
[313945886,1707844313785,-1000.0,0.00037751,2]
[313945887,1707844313794,-1000.0,0.00037751,2]
[313945888,1707844313803,-1000.0,0.00037751,2]
[313945889,1707844313812,-1000.0,0.00037751,2]
[313945890,1707844313821,-1000.0,0.00037751,2]
[313945891,1707844313831,-1000.0,0.00037751,2]
[313945892,1707844313841,-1000.0,0.00037751,2]
[313945893,1707844313850,-1000.0,0.00037751,2]
[313945894,1707844313859,-1000.0,0.00037751,2]
[313945895,1707844313868,-1515.814749,0.00037751,2]
[313945896,1707844313877,-1987.913013,0.00037751,30]
[313945897,1707844313886,-200.0,0.00037751,30]
[313945898,1707844313896,-200.0,0.00037751,30]
[313945899,1707844313905,-200.0,0.00037751,30]
[313945900,1707844313914,-200.0,0.00037751,30]
[313945901,1707844313923,-386.40329842,0.00037751,2]
[313945902,1707844313932,-1000.0,0.00037751,30]
[313945903,1707844313941,-1000.0,0.00037751,30]
[313945904,1707844313954,-1000.0,0.00037751,30]
[313945905,1707844313963,-1000.0,0.00037751,30]
[313945906,1707844313973,-1000.0,0.00037751,30]
[313945907,1707844313982,-1000.0,0.00037751,30]
[313945908,1707844313991,-1004.354174,0.00037751,30]
[313945909,1707844314000,-168.41602847,0.00037751,60]
[313945910,1707844314009,-500.0,0.00037761,6]
[313945911,1707844314018,-500.0,0.00037761,6]
[313945912,1707844314027,-500.0,0.00037761,6]
[313945913,1707844314037,-500.0,0.00037761,6]
[313945914,1707844314046,-317.91069528,0.00037761,6]
[313945915,1707844314055,-205.12795597,0.00037781,5]
[313945916,1707844314064,-889.0,0.000378,7]
[313945917,1707844314074,-150.0,0.000378,9]
[313945918,1707844314085,-155.252891,0.000378,9]
[313945919,1707844314094,-150.0,0.00037807,2]
[313945920,1707844314103,-1232.373682,0.00037808,14]
[313945921,1707844314112,-5059.86039188,0.00037809,2]
[313945922,1707844314122,-5053.51178493,0.00037809,2]
[313945923,1707844314131,-156.67920931,0.00037859,7]
[313945924,1707844314140,-154.93146774,0.00037863,7]
[313945925,1707844314150,-153.10344138,0.00037868,7]
[313945926,1707844314163,-300.0,0.0003787,2]
[313945927,1707844314173,-700.0,0.0003787,2]
[313945928,1707844314184,-199.07219596,0.00037878,7]
[313945929,1707844314195,-5250.0,0.0003788,20]
[313945930,1707844314212,-5250.0,0.0003788,21]
[313945931,1707844314223,-5250.0,0.0003788,27]
[313945932,1707844314233,-5250.0,0.0003788,28]
[313945933,1707844314243,-5250.0,0.0003788,29]
[313945934,1707844314253,-5250.0,0.0003788,19]
[313945935,1707844314264,-5250.0,0.0003788,26]
[313945936,1707844314274,-252.89503389,0.0003788,10]
[313945937,1707844314283,-1210.21749549,0.0003788,15]
[313945938,1707844314293,-5944.06880839,0.0003788,15]
[313945939,1707844314304,-171.95709609,0.0003788,10]
[313945940,1707844314314,-2398.60594973,0.0003788,15]
[313945941,1707844314324,-382.73453944,0.0003788,10]
[313945942,1707844314335,-2818.46546376,0.0003788,15]
[313945943,1707844314345,-310.46673635,0.0003788,10]
[313945944,1707844314355,-1799.0,0.0003789,2]
[313945945,1707844314365,-1546.0,0.0003789,2]
[313945946,1707844314374,-210.0,0.000379,30]
[313945947,1707844314384,-447.47,0.000379,7]
[313945948,1707844314394,-2257.17,0.000379,7]
[313945949,1707844314403,-641901.443729,0.000379,2]
[313945950,1707844314413,-156.95415395,0.00037921,7]
[313945951,1707844314424,-500.0,0.00037965,2]
[313945952,1707844314433,-223000.0,0.0003798,4]
[313945953,1707844314443,-223000.0,0.0003798,5]
[313945954,1707844314457,-223000.0,0.0003798,6]
[313945955,1707844314466,-223000.0,0.0003798,7]
[313945956,1707844314475,-223000.0,0.0003798,8]
[313945957,1707844314484,-21832.90167535,0.0003798,4]
[313945958,1707844314495,-2560.91180039,0.0003798,2]
[313945959,1707844314504,-154.0808095,0.00037984,7]
[313945960,1707844314514,-500.0,0.00037987,3]
[313945961,1707844314523,-874421.06748341,0.00037995,5]
[313945962,1707844314532,-50000.0,0.00038,8]
[313945963,1707844314542,-10030.0,0.00038,10]
[313945964,1707844314551,-500.0,0.00038,3]
[313945965,1707844314560,-20000.0,0.00038,7]
[313945966,1707844314570,-20000.0,0.00038,8]
[313945967,1707844314580,-1024.0,0.00038,2]
[313945968,1707844314589,-221343.29313237,0.00038,14]
[313945969,1707844314599,-500.0,0.00038,5]
[313945970,1707844314609,-2254.29059898,0.00038,7]
[313945971,1707844314618,-7000.0,0.00038,7]
[313945972,1707844314628,-13225.32242514,0.00038,2]
[313945973,1707844314637,-30000.0,0.00038,20]
[313945974,1707844314646,-230999.99999909,0.00038,2]
[313945975,1707844314655,-17000.0,0.00038,4]
[313945976,1707844314664,-395607.85958377,0.00038,2]
[313945977,1707844314673,-11120.95,0.00038,3]
[313945978,1707844314682,-16555.0416398,0.00038,2]
[313945979,1707844314692,-1926.0,0.00038,2]
[313945980,1707844314705,-300.0,0.00038,12]
[313945981,1707844314715,-40000.0,0.00038,7]
[313945982,1707844314725,-294.61578309,0.00038,10]
[313945983,1707844314734,-150.0,0.00038,2]
[313945984,1707844314743,-594.28923573,0.00038,7]
[313945985,1707844314752,-174.62089758,0.00038,4]
[313945986,1707844314762,-233246.7271284,0.00038,3]
[313945987,1707844314771,-1951.02513661,0.00038,4]
[313945988,1707844314780,-300.0,0.00038,39]
[313945989,1707844314789,-20000.0,0.00038,10]
[313945990,1707844314800,-166.0,0.00038,27]
[313945991,1707844314809,-154.16943477,0.00038014,7]
[313945992,1707844314818,-171.0,0.0003802,46]
[313945993,1707844314827,-155.07131601,0.00038028,20]
[313945994,1707844314836,-117646.0,0.00038028,20]
[313945995,1707844314846,-150.0,0.00038068,2]
[313945996,1707844314855,-600.0,0.00038082,2]
[313945997,1707844314865,-600.0,0.00038082,2]
[313945998,1707844314874,-600.0,0.00038082,2]
[313945999,1707844314883,-600.0,0.00038082,2]
[313946000,1707844314891,-600.0,0.00038082,2]
[313946001,1707844314901,-600.0,0.00038082,2]
[313946002,1707844314910,-600.0,0.00038082,2]
[313946003,1707844314919,-600.0,0.00038082,2]
[313946004,1707844314929,-600.0,0.00038082,2]
[313946005,1707844314938,-600.0,0.00038082,2]
[313946006,1707844314951,-600.0,0.00038082,2]
[313946007,1707844314960,-600.0,0.00038082,2]
[313946008,1707844314969,-600.0,0.00038082,2]
[313946009,1707844314978,-600.0,0.00038082,2]
[313946010,1707844314988,-600.0,0.00038082,2]
[313946011,1707844314997,-219.81427855,0.00038082,2]
[313946012,1707844315006,-343.81,0.00038082,11]
[313946013,1707844315015,-267.39767407,0.00038099,7]
[313946014,1707844315025,-210.0,0.000381,30]
[313946015,1707844315034,-150.0,0.00038108,2]
[313946016,1707844315045,-948.11063744,0.00038117,7]
[313946017,1707844315055,-604.0,0.00038146,7]
[313946018,1707844315065,-154.0808095,0.0003816,7]
[313946019,1707844315075,-152.48330725,0.00038193,7]
[313946020,1707844315087,-1733.6766564,0.000382,7]
[313946021,1707844315098,-447.47,0.000382,7]
[313946022,1707844315110,-2257.17,0.000382,7]
[313946023,1707844315119,-153.36,0.000382,3]
[313946024,1707844315129,-153.36,0.000382,3]
[313946025,1707844315139,-153.36,0.000382,3]
[313946026,1707844315151,-153.36,0.000382,3]
[313946027,1707844315161,-153.36,0.000382,3]
[313946028,1707844315172,-153.36,0.000382,3]
[313946029,1707844315183,-153.36,0.000382,3]
[313946030,1707844315192,-153.36,0.000382,3]
[313946031,1707844315204,-688.77,0.000382,3]
[313946032,1707844315214,-688.77,0.000382,3]
[313946033,1707844315223,-688.77,0.000382,3]
[313946034,1707844315233,-688.77,0.000382,3]
[313946035,1707844315242,-688.77,0.000382,3]
[313946036,1707844315252,-688.77,0.000382,3]
[313946037,1707844315393,-688.77,0.000382,3]
[313946038,1707844315405,-688.77,0.000382,3]
[313946039,1707844315414,-688.77,0.000382,3]
[313946040,1707844315423,-688.77,0.000382,3]
[313946041,1707844315433,-688.77,0.000382,3]
[313946042,1707844315442,-688.77,0.000382,3]
[313946043,1707844315453,-688.77,0.000382,3]
[313946044,1707844315463,-688.77,0.000382,3]
[313946045,1707844315473,-688.77,0.000382,3]
[313946046,1707844315482,-688.77,0.000382,3]
[313946047,1707844315492,-688.77,0.000382,3]
[313946048,1707844315501,-688.77,0.000382,3]
[313946049,1707844315510,-688.77,0.000382,3]
[313946050,1707844315520,-688.77,0.000382,3]
[313946051,1707844315529,-267.39767407,0.00038217,7]
[313946052,1707844315538,-500.0,0.00038226,2]
[313946053,1707844315548,-500.0,0.00038277,2]
[313946054,1707844315557,-500.0,0.00038277,2]
[313946055,1707844315566,-500.0,0.00038277,2]
[313946056,1707844315575,-200.0,0.00038277,2]
[313946057,1707844315584,-500.0,0.00038277,2]
[313946058,1707844315593,-500.0,0.00038277,2]
[313946059,1707844315602,-500.0,0.00038277,2]
[313946060,1707844315611,-350.0,0.00038278,2]
[313946061,1707844315621,-500.0,0.00038278,2]
[313946062,1707844315629,-500.0,0.00038278,2]
[313946063,1707844315638,-500.0,0.00038278,2]
[313946064,1707844315647,-500.0,0.00038278,2]
[313946065,1707844315656,-500.0,0.00038278,2]
[313946066,1707844315665,-500.0,0.00038278,2]
[313946067,1707844315674,-500.0,0.00038278,2]
[313946068,1707844315683,-500.0,0.00038278,2]
[313946069,1707844315693,-500.0,0.00038278,2]
[313946070,1707844315703,-500.0,0.00038278,2]
[313946071,1707844315713,-500.0,0.00038278,2]
[313946072,1707844315721,-500.0,0.00038278,2]
[313946073,1707844315730,-500.0,0.00038278,2]
[313946074,1707844315739,-500.0,0.00038278,2]
[313946075,1707844315749,-500.0,0.00038278,2]
[313946076,1707844315758,-500.0,0.00038278,2]
[313946077,1707844315767,-500.0,0.00038278,2]
[313946078,1707844315776,-500.0,0.00038278,2]
[313946079,1707844315785,-500.0,0.00038278,2]
[313946080,1707844315794,-500.0,0.00038278,2]
[313946081,1707844315803,-500.0,0.00038278,2]
[313946082,1707844315812,-500.0,0.00038278,2]
[313946083,1707844315821,-500.0,0.00038278,2]
[313946084,1707844315831,-500.0,0.00038278,2]
[313946085,1707844315840,-500.0,0.00038278,2]
[313946086,1707844315851,-500.0,0.00038278,2]
[313946087,1707844315860,-500.0,0.00038278,2]
[313946088,1707844315870,-500.0,0.00038278,2]
[313946089,1707844315880,-500.0,0.00038278,2]
[313946090,1707844315890,-500.0,0.00038278,2]
[313946091,1707844315902,-500.0,0.00038278,2]
[313946092,1707844315913,-500.0,0.00038278,2]
[313946093,1707844315924,-500.0,0.00038278,2]
[313946094,1707844315934,-500.0,0.00038278,2]
[313946095,1707844315945,-500.0,0.00038278,2]
[313946096,1707844315958,-500.0,0.00038278,2]
[313946097,1707844315968,-500.0,0.00038278,2]
[313946098,1707844315978,-500.0,0.00038278,2]
[313946099,1707844315987,-500.0,0.00038278,2]
[313946100,1707844315997,-500.0,0.00038278,2]
[313946101,1707844316006,-500.0,0.00038278,2]
[313946102,1707844316016,-500.0,0.00038278,2]
[313946103,1707844316025,-500.0,0.00038278,2]
[313946104,1707844316035,-500.0,0.00038278,2]
[313946105,1707844316045,-500.0,0.00038278,2]
[313946106,1707844316058,-500.0,0.00038278,2]
[313946107,1707844316070,-500.0,0.00038278,2]
[313946108,1707844316080,-500.0,0.00038278,2]
[313946109,1707844316090,-500.0,0.00038278,2]
[313946110,1707844316101,-500.0,0.00038278,2]
[313946111,1707844316111,-500.0,0.00038278,2]
[313946112,1707844316121,-500.0,0.00038278,2]
[313946113,1707844316131,-500.0,0.00038278,2]
[313946114,1707844316141,-500.0,0.00038278,2]
[313946115,1707844316152,-500.0,0.00038278,2]
[313946116,1707844316162,-500.0,0.00038278,2]
[313946117,1707844316172,-500.0,0.00038278,2]
[313946118,1707844316181,-500.0,0.00038278,2]
[313946119,1707844316191,-500.0,0.00038278,2]
[313946120,1707844316203,-500.0,0.00038278,2]
[313946121,1707844316212,-500.0,0.00038278,2]
[313946122,1707844316222,-500.0,0.00038278,2]
[313946123,1707844316232,-500.0,0.00038278,2]
[313946124,1707844316241,-500.0,0.00038278,2]
[313946125,1707844316252,-500.0,0.00038278,2]
[313946126,1707844316261,-500.0,0.00038278,2]
[313946127,1707844316272,-277.55564651,0.00038278,15]
[313946128,1707844316282,-250.09939072,0.00038278,10]
[313946129,1707844316291,-205.65810414,0.00038278,15]
[313946130,1707844316301,-201.76124353,0.00038278,10]
[313946131,1707844316310,-1000.0,0.00038278,10]
[313946132,1707844316320,-267.39767407,0.00038293,7]
[313946133,1707844316330,-210.0,0.000383,30]
[313946134,1707844316340,-200.0,0.000383,14]
[313946135,1707844316350,-200.0,0.000383,12]
[313946136,1707844316360,-300.0,0.000383,5]
[313946137,1707844316369,-948.11063744,0.00038304,7]
[313946138,1707844316378,-948.11063744,0.00038306,7]
[313946139,1707844316388,-499.77453941,0.00038321,7]
[313946140,1707844316397,-555.61,0.00038329,2]
[313946141,1707844316406,-3652.56,0.00038352,2]
[313946142,1707844316415,-1772.69507836,0.00038356,30]
[313946143,1707844316424,-1250.0,0.00038356,2]
[313946144,1707844316433,-4000.0,0.00038356,30]
[313946145,1707844316442,-300.0,0.0003837,2]
[313946146,1707844316454,-505.87,0.000384,7]
[313946147,1707844316463,-5000.0,0.000384,2]
[313946148,1707844316472,-798.0,0.000384,2]
[313946149,1707844316481,-2000.0,0.000384,2]
[313946150,1707844316491,-361.84787979,0.000384,2]
[313946151,1707844316501,-159.0,0.000384,2]
[313946152,1707844316511,-500.0,0.000384,2]
[313946153,1707844316521,-500.0,0.000384,2]
[313946154,1707844316530,-476.0,0.000384,2]
[313946155,1707844316540,-5364.51641404,0.000384,2]
[313946156,1707844316549,-1034.0,0.000384,2]
[313946157,1707844316558,-117646.0,0.00038408,20]
[313946158,1707844316568,-154.16943477,0.00038432,7]
[313946159,1707844316577,-150.0,0.00038433,2]
[313946160,1707844316586,-45668.09888215,0.0003844,4]
[313946161,1707844316595,-150.94077731,0.00038445,7]
[313946162,1707844316604,-158.68437824,0.0003845,15]
[313946163,1707844316613,-392.60597052,0.0003845,15]
[313946164,1707844316623,-267.39767407,0.00038461,7]
[313946165,1707844316632,-154.16943477,0.00038471,7]
[313946166,1707844316641,-267.39767407,0.00038479,7]
[313946167,1707844316650,-500.0,0.00038487,2]
[313946168,1707844316660,-210.0,0.000385,30]
[313946169,1707844316669,-2500.0,0.000385,14]
[313946170,1707844316679,-5000.0,0.000385,7]
[313946171,1707844316688,-300.0,0.000385,14]
[313946172,1707844316697,-447.47,0.000385,7]
[313946173,1707844316709,-2257.17,0.000385,7]
[313946174,1707844316718,-155.0,0.000385,4]
[313946175,1707844316728,-221.5444787,0.000385,30]
[313946176,1707844316737,-155.0,0.000385,4]
[313946177,1707844316746,-193.69472516,0.000385,4]
[313946178,1707844316755,-3000.0,0.000385,7]
[313946179,1707844316765,-166.0,0.000385,28]
[313946180,1707844316774,-1440.0,0.000385,12]
[313946181,1707844316783,-150.94077731,0.00038516,7]
[313946182,1707844316792,-153.0,0.00038544,7]
[313946183,1707844316801,-152.48330725,0.0003858,7]
[313946184,1707844316810,-948.11063744,0.00038586,7]
[313946185,1707844316820,-499.77453941,0.00038611,7]
[313946186,1707844316829,-152.38832212,0.00038621,2]
[313946187,1707844316838,-267.39767407,0.00038623,7]
[313946188,1707844316847,-1232.373682,0.0003863,14]
[313946189,1707844316856,-156.95415395,0.00038649,7]
[313946190,1707844316866,-267.39767407,0.00038663,7]
[313946191,1707844316875,-499.77453941,0.00038691,7]
[313946192,1707844316884,-210.0,0.000387,30]
[313946193,1707844316893,-505.87,0.000387,7]
[313946194,1707844316902,-152.216947,0.00038723,2]
[313946195,1707844316912,-152.747184,0.00038723,2]
[313946196,1707844316921,-173.988218,0.00038723,2]
[313946197,1707844316930,-173.121814,0.00038723,2]
[313946198,1707844316939,-150.0,0.00038723,2]
[313946199,1707844316948,-5977.125637,0.00038723,2]
[313946200,1707844316958,-1149.307006,0.00038723,2]
[313946201,1707844316967,-278.190001,0.00038723,2]
[313946202,1707844316976,-5428.373395,0.00038723,2]
[313946203,1707844316986,-326.55931,0.00038723,2]
[313946204,1707844316995,-500.0,0.00038748,2]
[313946205,1707844317004,-5000.0,0.00038751,30]
[313946206,1707844317013,-5000.0,0.00038751,30]
[313946207,1707844317022,-5000.0,0.00038751,30]
[313946208,1707844317032,-5000.0,0.00038751,30]
[313946209,1707844317042,-2611.0,0.00038751,30]
[313946210,1707844317051,-1002.0,0.00038751,2]
[313946211,1707844317062,-1185.99373654,0.00038765,2]
[313946212,1707844317071,-5249.06,0.0003877,7]
[313946213,1707844317082,-5249.06,0.0003877,7]
[313946214,1707844317092,-5249.06,0.0003877,7]
[313946215,1707844317102,-5249.06,0.0003877,7]
[313946216,1707844317111,-200.0,0.00038782,2]
[313946217,1707844317120,-166.99392,0.00038787,4]
[313946218,1707844317130,-117646.0,0.00038788,20]
[313946219,1707844317139,-156.67920931,0.00038793,7]
[313946220,1707844317149,-21463.63473487,0.000388,4]
[313946221,1707844317159,-447.47,0.000388,7]
[313946222,1707844317168,-2257.17,0.000388,7]
[313946223,1707844317178,-905.1998129,0.000388,15]
[313946224,1707844317187,-159.0,0.000388,37]
[313946225,1707844317196,-1000.0,0.000388,39]
[313946226,1707844317207,-499.77453941,0.00038821,7]
[313946227,1707844317216,-948.11063744,0.00038829,7]
[313946228,1707844317225,-154.93146774,0.00038854,7]
[313946229,1707844317235,-166.63863412,0.00038863,7]
[313946230,1707844317244,-152.0,0.00038863,5]
[313946231,1707844317253,-150.0,0.00038886,120]
[313946232,1707844317262,-210.0,0.000389,30]
[313946233,1707844317272,-48891.72707558,0.000389,2]
[313946234,1707844317280,-890.89397973,0.000389,120]
[313946235,1707844317289,-4069.79495483,0.000389,15]
[313946236,1707844317298,-1000.0,0.000389,2]
[313946237,1707844317308,-236.43333465,0.000389,30]
[313946238,1707844317318,-152.48330725,0.00038919,7]
[313946239,1707844317327,-690.374,0.00038929,2]
[313946240,1707844317337,-150.0,0.00038933,2]
[313946241,1707844317346,-156.95415395,0.00038946,7]
[313946242,1707844317355,-150.0,0.00038953,120]
[313946243,1707844317365,-404.88180574,0.0003898,2]
[313946244,1707844317374,-656.0,0.0003898,2]
[313946245,1707844317383,-5000.0,0.00038986,4]
[313946246,1707844317393,-5000.0,0.00038986,4]
[313946247,1707844317406,-5000.0,0.00038986,4]
[313946248,1707844317415,-5000.0,0.00038986,4]
[313946249,1707844317427,-5000.0,0.00038986,4]
[313946250,1707844317437,-5000.0,0.00038986,4]
[313946251,1707844317446,-5000.0,0.00038986,4]
[313946252,1707844317457,-5000.0,0.00038986,4]
[313946253,1707844317467,-5000.0,0.00038986,4]
[313946254,1707844317475,-5000.0,0.00038986,4]
[313946255,1707844317485,-5000.0,0.00038986,4]
[313946256,1707844317495,-5000.0,0.00038986,4]
[313946257,1707844317504,-5000.0,0.00038986,4]
[313946258,1707844317513,-5000.0,0.00038986,4]
[313946259,1707844317523,-5000.0,0.00038986,4]
[313946260,1707844317532,-5000.0,0.00038986,4]
[313946261,1707844317541,-5000.0,0.00038986,4]
[313946262,1707844317550,-5000.0,0.00038986,4]
[313946263,1707844317559,-5000.0,0.00038986,4]
[313946264,1707844317569,-5000.0,0.00038986,4]
[313946265,1707844317578,-5000.0,0.00038986,4]
[313946266,1707844317587,-5000.0,0.00038986,4]
[313946267,1707844317597,-5000.0,0.00038986,4]
[313946268,1707844317606,-5000.0,0.00038986,4]
[313946269,1707844317730,-5000.0,0.00038986,4]
[313946270,1707844317751,-5000.0,0.00038986,4]
[313946271,1707844317761,-5000.0,0.00038986,4]
[313946272,1707844317770,-5000.0,0.00038986,4]
[313946273,1707844317780,-5000.0,0.00038986,4]
[313946274,1707844317789,-5000.0,0.00038986,4]
[313946275,1707844317798,-5000.0,0.00038986,4]
[313946276,1707844317807,-5000.0,0.00038986,4]
[313946277,1707844317817,-5000.0,0.00038986,4]
[313946278,1707844317826,-5000.0,0.00038986,4]
[313946279,1707844317835,-5000.0,0.00038986,4]
[313946280,1707844317845,-5000.0,0.00038986,4]
[313946281,1707844317854,-5000.0,0.00038986,4]
[313946282,1707844317863,-5000.0,0.00038986,4]
[313946283,1707844317872,-5000.0,0.00038986,4]
[313946284,1707844317882,-5000.0,0.00038986,4]
[313946285,1707844317891,-3242.57492414,0.00038986,4]
[313946286,1707844317900,-500.0,0.00038987,4]
[313946287,1707844317910,-948.11063744,0.00038994,7]
[313946288,1707844317919,-50000.0,0.00039,9]
[313946289,1707844317928,-1941.07139095,0.00039,2]
[313946290,1707844317937,-862.90015685,0.00039,4]
[313946291,1707844317946,-309.83980399,0.00039,5]
[313946292,1707844317957,-20172.831357,0.00039,8]
[313946293,1707844317967,-20000.0,0.00039,11]
[313946294,1707844317977,-10000.0,0.00039,2]